fUSD/lending_fUSD_20240503
["ID","MTS","AMOUNT","RATE_DAILY","PERIOD"]
[325339406,1714743055266,-500.77824988,0.00043835,30]
[325339409,1714743055276,-500.0,0.00043835,30]
[325339411,1714743055286,-500.0,0.00043835,30]
[325339413,1714743055298,-2100.25,0.00043835,30]
[325339415,1714743055308,-500.0,0.00043835,30]
[325339417,1714743055317,-500.0,0.00043835,30]
[325339419,1714743055329,-500.0,0.00043835,30]
[325339421,1714743055338,-500.0,0.00043835,30]
[325339423,1714743055348,-1999.82,0.00043835,30]
[325339425,1714743055358,-986.91,0.00043835,30]
[325339426,1714743055367,-500.0,0.00043835,30]
[325339428,1714743055377,-517.13782746,0.00043835,30]
[325339430,1714743055386,-500.0,0.00043835,30]
[325339432,1714743055395,-500.0,0.00043835,30]
[325339434,1714743055405,-509.8,0.00043835,30]
[325339436,1714743055414,-639.30483278,0.00043835,30]
[325339440,1714743055438,-419.00097074,0.00043835,30]
[325339442,1714743055450,-208.96419648,0.00043835,30]
[325339444,1714743055459,-500.0,0.00043835,30]
[325339446,1714743055468,-554.03580352,0.00043835,30]
[325339448,1714743055480,-835.23419648,0.00043835,30]
[325339450,1714743055489,-500.0,0.00043835,30]
[325339452,1714743055500,-500.0,0.00043835,30]
[325339454,1714743055510,-500.0,0.00043835,30]
[325339456,1714743055519,-500.0,0.00043835,30]
[325339458,1714743055529,-781.6,0.00043835,30]
[325339460,1714743055539,-500.0,0.00043835,30]
[325339462,1714743055548,-500.0,0.00043835,30]
[325339464,1714743055558,-500.0,0.00043835,30]
[325339466,1714743055568,-1309.34,0.00043835,30]
[325339468,1714743055577,-720.02,0.00043835,30]
[325339470,1714743055586,-500.0,0.00043835,30]
[325339472,1714743055596,-830.94,0.00043835,30]
[325339474,1714743055605,-501.32208115,0.00043835,30]
[325339476,1714743055615,-500.0,0.00043835,30]
[325339479,1714743055625,-500.0,0.00043835,30]
[325339481,1714743055647,-862.45,0.00043835,30]
[325339482,1714743055657,-250.72,0.00043835,30]
[325339483,1714743055668,-500.0,0.00043835,30]
[325339484,1714743055680,-500.0,0.00043835,30]
[325339485,1714743055690,-529.24,0.00043835,30]
[325339486,1714743055700,-554.40982551,0.00043835,30]
[325339487,1714743055711,-1853.21,0.00043835,30]
[325339488,1714743055721,-500.0,0.00043835,30]
[325339489,1714743055732,-500.0,0.00043835,30]
[325339490,1714743055743,-522.71125279,0.00043835,30]
[325339491,1714743055753,-2957.12,0.00043835,30]
[325339493,1714743055764,-500.0,0.00043835,30]
[325339495,1714743055775,-1098.5,0.00043835,30]
[325339497,1714743055785,-500.0,0.00043835,30]
[325339499,1714743055795,-501.34466708,0.00043835,30]
[325339501,1714743055804,-500.0,0.00043835,30]
[325339503,1714743055814,-500.0,0.00043835,30]
[325339505,1714743055824,-838.77,0.00043835,30]
[325339507,1714743055834,-1148.6,0.00043835,30]
[325339509,1714743055844,-753.25,0.00043835,30]
[325339511,1714743055853,-500.0,0.00043835,30]
[325339513,1714743055863,-519.0,0.00043835,30]
[325339515,1714743055873,-500.0,0.00043835,30]
[325339517,1714743055883,-500.0,0.00043835,30]
[325339519,1714743055894,-1926.76,0.00043835,30]
[325339521,1714743055903,-500.0,0.00043835,30]
[325339523,1714743055913,-500.0,0.00043835,30]
[325339525,1714743055922,-500.0,0.00043835,30]
[325339527,1714743055934,-500.0,0.00043835,30]
[325339529,1714743055944,-500.0,0.00043835,30]
[325339531,1714743055953,-1000.0,0.00043835,2]
[325339533,1714743055963,-500.0,0.00043835,30]
[325339535,1714743055974,-1342.2,0.00043835,30]
[325339537,1714743055983,-500.0,0.00043835,30]
[325339539,1714743055993,-501.98263446,0.00043835,30]
[325339541,1714743056003,-725.93,0.00043835,30]
[325339543,1714743056013,-500.0,0.00043835,30]
[325339545,1714743056023,-720.51,0.00043835,30]
[325339547,1714743056032,-500.0,0.00043835,30]
[325339549,1714743056042,-539.86631363,0.00043835,30]
[325339551,1714743056052,-500.0,0.00043835,30]
[325339553,1714743056062,-502.33739822,0.00043835,30]
[325339555,1714743056071,-1823.64,0.00043835,30]
[325339557,1714743056082,-500.0,0.00043835,30]
[325339559,1714743056091,-2507.59,0.00043835,30]
[325339561,1714743056101,-579.38,0.00043835,30]
[325339563,1714743056111,-500.0,0.00043835,30]
[325339566,1714743056121,-500.0,0.00043835,30]
[325339567,1714743056131,-501.62929266,0.00043835,30]
[325339569,1714743056141,-611.45,0.00043835,30]
[325339572,1714743056151,-2391.45,0.00043835,30]
[325339574,1714743056160,-500.34964602,0.00043835,30]
[325339576,1714743056170,-500.0,0.00043835,30]
[325339578,1714743056179,-1355.32,0.00043835,30]
[325339579,1714743056189,-500.0,0.00043835,30]
[325339581,1714743056199,-500.0,0.00043835,30]
[325339584,1714743056211,-222.75286377,0.00043835,30]
[325339585,1714743056225,-912.51,0.00043835,30]
[325339588,1714743056235,-500.0,0.00043835,30]
[325339590,1714743056245,-500.0,0.00043835,30]
[325339592,1714743056256,-500.0,0.00043835,30]
[325339593,1714743056266,-500.0,0.00043835,30]
[325339596,1714743056277,-501.54013823,0.00043835,30]
[325339598,1714743056287,-710.36,0.00043835,30]
[325339600,1714743056299,-500.0,0.00043835,30]
[325339602,1714743056308,-520.82602856,0.00043835,30]
[325339604,1714743056317,-827.35,0.00043835,30]
[325339606,1714743056327,-500.0,0.00043835,30]
[325339607,1714743056337,-1485.13,0.00043835,30]
[325339610,1714743056346,-500.0,0.00043835,30]
[325339612,1714743056356,-500.0,0.00043835,30]
[325339614,1714743056365,-500.0,0.00043835,30]
[325339616,1714743056375,-598.41,0.00043835,30]
[325339618,1714743056386,-500.0,0.00043835,2]
[325339620,1714743056397,-971.91,0.00043835,30]
[325339622,1714743056407,-500.0,0.00043835,30]
[325339624,1714743056417,-500.0,0.00043835,30]
[325339626,1714743056427,-500.0,0.00043835,30]
[325339628,1714743056438,-500.0,0.00043835,30]
[325339630,1714743056447,-1412.25,0.00043835,30]
[325339632,1714743056457,-1894.97,0.00043835,30]
[325339634,1714743056467,-500.0,0.00043835,30]
[325339636,1714743056476,-500.0,0.00043835,30]
[325339638,1714743056486,-500.0,0.00043835,30]
[325339640,1714743056496,-649.72,0.00043835,30]
[325339642,1714743056508,-500.0,0.00043835,30]
[325339644,1714743056517,-550.67,0.00043835,30]
[325339646,1714743056527,-500.0,0.00043835,30]
[325339649,1714743056537,-500.0,0.00043835,30]
[325339651,1714743056547,-1310.1,0.00043835,30]
[325339653,1714743056557,-500.0,0.00043835,30]
[325339655,1714743056567,-500.65708264,0.00043835,30]
[325339657,1714743056576,-856.32,0.00043835,30]
[325339659,1714743056585,-1243.0,0.00043835,30]
[325339661,1714743056596,-500.0,0.00043835,30]
[325339663,1714743056605,-500.0,0.00043835,30]
[325339665,1714743056615,-500.0,0.00043835,30]
[325339667,1714743056625,-2347.33,0.00043835,30]
[325339669,1714743056635,-2210.93,0.00043835,30]
[325339671,1714743056644,-500.0,0.00043835,30]
[325339673,1714743056653,-500.0,0.00043835,30]
[325339675,1714743056663,-500.0,0.00043835,30]
[325339677,1714743056672,-652.33,0.00043835,30]
[325339679,1714743056685,-500.0,0.00043835,30]
[325339681,1714743056695,-972.15,0.00043835,30]
[325339683,1714743056704,-560.03,0.00043835,30]
[325339685,1714743056719,-500.0,0.00043835,30]
[325339687,1714743056729,-502.78115307,0.00043835,30]
[325339689,1714743056739,-500.0,0.00043835,30]
[325339692,1714743056749,-738.96,0.00043835,30]
[325339694,1714743056759,-502.36303706,0.00043835,30]
[325339696,1714743056769,-500.0,0.00043835,30]
[325339698,1714743056779,-500.0,0.00043835,30]
[325339700,1714743056789,-500.0,0.00043835,30]
[325339702,1714743056800,-2276.25,0.00043835,30]
[325339704,1714743056810,-503.91584752,0.00043835,30]
[325339706,1714743056820,-500.0,0.00043835,30]
[325339708,1714743056830,-633.15,0.00043835,30]
[325339710,1714743056840,-500.0,0.00043835,30]
[325339712,1714743056850,-1664.9,0.00043835,30]
[325339715,1714743056860,-500.0,0.00043835,30]
[325339717,1714743056870,-500.0,0.00043835,30]
[325339719,1714743056880,-500.0,0.00043835,30]
[325339721,1714743056890,-500.0,0.00043835,30]
[325339723,1714743056900,-503.73074177,0.00043835,30]
[325339725,1714743056909,-500.0,0.00043835,30]
[325339727,1714743056919,-608.41,0.00043835,30]
[325339729,1714743056932,-1204.47,0.00043835,30]
[325339731,1714743056944,-1372.7,0.00043835,30]
[325339733,1714743056954,-1490.62,0.00043835,30]
[325339735,1714743056964,-500.0,0.00043835,30]
[325339737,1714743056975,-502.46551233,0.00043835,30]
[325339739,1714743056985,-514.71314775,0.00043835,30]
[325339741,1714743056996,-500.0,0.00043835,30]
[325339743,1714743057006,-500.0,0.00043835,30]
[325339745,1714743057017,-2074.74,0.00043835,30]
[325339747,1714743057027,-500.0,0.00043835,30]
[325339749,1714743057037,-397.52971943,0.00043835,30]
[325339752,1714743057048,-500.51047344,0.00043835,30]
[325339754,1714743057059,-500.0,0.00043835,30]
[325339756,1714743057069,-1060.24,0.00043835,30]
[325339758,1714743057078,-500.0,0.00043835,30]
[325339760,1714743057088,-500.0,0.00043835,30]
[325339762,1714743057098,-500.0,0.00043835,30]
[325339764,1714743057108,-1255.35,0.00043835,30]
[325339766,1714743057118,-500.0,0.00043835,30]
[325339768,1714743057128,-500.0,0.00043835,30]
[325339770,1714743057138,-500.0,0.00043835,30]
[325339772,1714743057148,-1980.3,0.00043835,30]
[325339774,1714743057158,-500.0,0.00043835,30]
[325339776,1714743057168,-500.0,0.00043835,30]
[325339779,1714743057181,-188.16506618,0.00043835,30]
[325339781,1714743057191,-500.0,0.00043835,30]
[325339783,1714743057200,-500.0,0.00043835,30]
[325339785,1714743057211,-500.0,0.00043835,30]
[325339787,1714743057224,-500.0,0.00043835,30]
[325339789,1714743057234,-500.0,0.00043835,30]
[325339791,1714743057243,-1380.63,0.00043835,30]
[325339793,1714743057257,-500.0,0.00043835,30]
[325339795,1714743057266,-1623.75,0.00043835,30]
[325339797,1714743057277,-2149.96,0.00043835,30]
[325339799,1714743057287,-500.0,0.00043835,30]
[325339801,1714743057298,-2455.57,0.00043835,30]
[325339803,1714743057309,-500.0,0.00043835,30]
[325339805,1714743057318,-500.0,0.00043835,31]
[325339807,1714743057328,-500.0,0.00043835,32]
[325339809,1714743057338,-500.0,0.00043835,33]
[325339811,1714743057348,-500.0,0.00043835,34]
[325339813,1714743057358,-500.0,0.00043835,35]
[325339815,1714743057368,-699.57,0.00043835,30]
[325339817,1714743057378,-500.0,0.00043835,36]
[325339819,1714743057389,-500.0,0.00043835,30]
[325339821,1714743057399,-500.0,0.00043835,37]
[325339823,1714743057409,-500.0,0.00043835,30]
[325339826,1714743057418,-500.0,0.00043835,30]
[325339828,1714743057431,-500.0,0.00043835,38]
[325339830,1714743057440,-2797.72,0.00043835,30]
[325339832,1714743057449,-1575.24,0.00043835,30]
[325339834,1714743057459,-500.0,0.00043835,39]
[325339836,1714743057467,-500.0,0.00043835,40]
[325339838,1714743057477,-500.0,0.00043835,41]
[325339840,1714743057486,-500.0,0.00043835,42]
[325339842,1714743057496,-500.64315692,0.00043835,30]
[325339844,1714743057507,-500.0,0.00043835,43]
[325339846,1714743057516,-1184.43,0.00043835,30]
[325339848,1714743057526,-437.98481475,0.00043835,44]
[325339850,1714743057536,-2745.57,0.00043835,30]
[325339852,1714743057546,-500.0,0.00043835,30]
[325339854,1714743057555,-500.0,0.00043835,30]
[325339856,1714743057565,-500.0,0.00043835,30]
[325339858,1714743057574,-1003.39,0.00043835,30]
[325339860,1714743057583,-500.0,0.00043835,30]
[325339862,1714743057594,-3213.35,0.00043835,30]
[325339864,1714743057603,-500.0,0.00043835,30]
[325339866,1714743057613,-500.0,0.00043835,30]
[325339868,1714743057622,-500.0,0.00043835,30]
[325339870,1714743057632,-2413.27,0.00043835,30]
[325339872,1714743057643,-927.0,0.00043835,30]
[325339874,1714743057652,-500.0,0.00043835,30]
[325339876,1714743057662,-2392.88,0.00043835,30]
[325339878,1714743057671,-500.0,0.00043835,30]
[325339881,1714743057684,-1833.3,0.00043835,30]
[325339883,1714743057695,-500.0,0.00043835,30]
[325339885,1714743057704,-500.0,0.00043835,30]
[325339887,1714743057714,-500.0,0.00043835,30]
[325339889,1714743057723,-2219.77,0.00043835,30]
[325339891,1714743057733,-500.0,0.00043835,30]
[325339893,1714743057743,-500.0,0.00043835,30]
[325339895,1714743057752,-500.0,0.00043835,30]
[325339897,1714743057761,-501.3882445,0.00043835,30]
[325339899,1714743057771,-500.0,0.00043835,30]
[325339901,1714743057780,-1105.71,0.00043835,30]
[325339903,1714743057789,-500.0,0.00043835,30]
[325339905,1714743057799,-500.0,0.00043835,30]
[325339907,1714743057809,-500.0,0.00043835,30]
[325339909,1714743057818,-2390.08,0.00043835,30]
[325339911,1714743057828,-1662.22,0.00043835,30]
[325339914,1714743057837,-500.0,0.00043835,30]
[325339916,1714743057847,-1101.22,0.00043835,30]
[325339918,1714743057856,-1879.47,0.00043835,30]
[325339920,1714743057867,-500.0,0.00043835,30]
[325339922,1714743057876,-531.15915109,0.00043835,30]
[325339924,1714743057886,-500.0,0.00043835,30]
[325339926,1714743057896,-500.0,0.00043835,30]
[325339928,1714743057906,-475.86327597,0.00043835,30]
[325339930,1714743057915,-502.18850745,0.00043835,30]
[325339932,1714743057925,-1430.81,0.00043835,30]
[325339934,1714743057938,-2000.74,0.00043835,30]
[325339936,1714743057948,-500.0,0.00043835,30]
[325339938,1714743057956,-518.57804078,0.00043835,30]
[325339940,1714743057966,-500.0,0.00043835,30]
[325339942,1714743057976,-500.0,0.00043835,30]
[325339944,1714743057985,-2192.95,0.00043835,30]
[325339947,1714743057995,-500.0,0.00043835,30]
[325339949,1714743058004,-500.0,0.00043835,30]
[325339950,1714743058014,-1835.38,0.00043835,30]
[325339951,1714743058024,-500.0,0.00043835,30]
[325339952,1714743058033,-222.91074402,0.00043835,30]
[325339953,1714743058043,-625.08,0.00043835,30]
[325339954,1714743058052,-500.0,0.00043835,30]
[325339955,1714743058062,-1295.2,0.00043835,30]
[325339956,1714743058072,-500.0,0.00043835,30]
[325339957,1714743058083,-1242.04,0.00043835,30]
[325339958,1714743058093,-750.76,0.00043835,30]
[325339959,1714743058103,-500.0,0.00043835,30]
[325339960,1714743058113,-500.0,0.00043835,30]
[325339961,1714743058123,-500.0,0.00043835,30]
[325339962,1714743058132,-500.0,0.00043835,30]
[325339963,1714743058142,-997.1,0.00043835,30]
[325339964,1714743058152,-500.0,0.00043835,30]
[325339965,1714743058162,-500.0,0.00043835,30]
[325339966,1714743058171,-500.0,0.00043835,30]
[325339967,1714743058183,-3485.33,0.00043835,30]
[325339968,1714743058193,-1891.01,0.00043835,30]
[325339969,1714743058203,-500.0,0.00043835,30]
[325339970,1714743058216,-500.0,0.00043835,30]
[325339971,1714743058227,-741.11,0.00043835,30]
[325339972,1714743058236,-500.0,0.00043835,30]
[325339973,1714743058246,-500.0,0.00043835,30]
[325339974,1714743058258,-500.0,0.00043835,30]
[325339975,1714743058268,-500.0,0.00043835,30]
[325339976,1714743058279,-500.0,0.00043835,31]
[325339977,1714743058288,-500.0,0.00043835,30]
[325339978,1714743058300,-500.0,0.00043835,30]
[325339979,1714743058309,-500.0,0.00043835,30]
[325339980,1714743058319,-500.0,0.00043835,30]
[325339981,1714743058329,-1063.9,0.00043835,30]
[325339982,1714743058339,-507.63301354,0.00043835,30]
[325339983,1714743058349,-605.73872103,0.00043835,2]
[325339984,1714743058359,-500.0,0.00043835,30]
[325339985,1714743058369,-500.0,0.00043835,30]
[325339986,1714743058380,-500.0,0.00043835,30]
[325339987,1714743058389,-1184.52,0.00043835,30]
[325339988,1714743058400,-500.0,0.00043835,30]
[325339989,1714743058410,-503.18,0.00043835,30]
[325339990,1714743058419,-3145.69,0.00043835,30]
[325339991,1714743058430,-1156.93,0.00043835,30]
[325339992,1714743058442,-500.0,0.00043835,30]
[325339993,1714743058451,-500.0,0.00043835,30]
[325339994,1714743058461,-500.0,0.00043835,2]
[325339995,1714743058471,-500.0,0.00043835,30]
[325339996,1714743058481,-500.0,0.00043835,30]
[325339997,1714743058490,-500.0,0.00043835,30]
[325339998,1714743058501,-500.0,0.00043835,30]
[325339999,1714743058511,-500.0,0.00043835,30]
[325340000,1714743058520,-500.0,0.00043835,30]
[325340001,1714743058529,-500.0,0.00043835,30]
[325340002,1714743058539,-156.76807552,0.00043835,2]
[325340003,1714743058548,-1251.01,0.00043835,30]
[325340004,1714743058557,-500.0,0.00043835,30]
[325340005,1714743058566,-500.0,0.00043835,7]
[325340006,1714743058576,-420.79862867,0.00043835,30]
[325340007,1714743058585,-500.0,0.00043835,30]
[325340008,1714743058594,-1635.9,0.00043835,30]
[325340009,1714743058604,-500.0,0.00043835,30]
[325340010,1714743058613,-692.81,0.00043835,30]
[325340011,1714743058623,-500.0,0.00043835,30]
[325340012,1714743058633,-3170.74,0.00043835,30]
[325340013,1714743058643,-1638.98,0.00043835,30]
[325340014,1714743058652,-500.0,0.00043835,30]
[325340015,1714743058661,-500.0,0.00043835,30]
[325340016,1714743058671,-500.0,0.00043835,30]
[325340017,1714743058684,-500.0,0.00043835,30]
[325340018,1714743058694,-284.4274712,0.00043835,30]
[325340019,1714743058703,-3242.94,0.00043835,30]
[325340020,1714743058713,-3778.26,0.00043835,30]
[325340021,1714743058722,-3322.68,0.00043835,30]
[325340022,1714743058731,-500.0,0.00043835,30]
[325340023,1714743058740,-500.0,0.00043835,30]
[325340024,1714743058750,-500.0,0.00043835,30]
[325340025,1714743058759,-500.0,0.00043835,30]
[325340026,1714743058769,-1612.87,0.00043835,30]
[325340027,1714743058778,-500.0,0.00043835,30]
[325340028,1714743058787,-500.0,0.00043835,30]
[325340029,1714743058795,-500.0,0.00043835,30]
[325340030,1714743058805,-500.0,0.00043835,30]
[325340031,1714743058814,-500.0,0.00043835,30]
[325340032,1714743058823,-500.0,0.00043835,30]
[325340033,1714743058833,-500.0,0.00043835,30]
[325340034,1714743058843,-3231.62,0.00043835,30]
[325340035,1714743058852,-1667.05,0.00043835,30]
[325340036,1714743058862,-500.0,0.00043835,30]
[325340037,1714743058871,-500.0,0.00043835,30]
[325340038,1714743058881,-500.0,0.00043835,30]
[325340039,1714743058890,-682.87,0.00043835,30]
[325340040,1714743058900,-2095.38,0.00043835,30]
[325340041,1714743058910,-2709.41,0.00043835,30]
[325340042,1714743058919,-500.0,0.00043835,30]
[325340043,1714743058930,-774.62,0.00043835,30]
[325340044,1714743058939,-500.0,0.00043835,30]
[325340045,1714743058949,-821.07,0.00043835,30]
[325340046,1714743058959,-500.0,0.00043835,30]
[325340047,1714743058969,-1314.14,0.00043835,30]
[325340048,1714743058978,-500.0,0.00043835,30]
[325340049,1714743058988,-500.0,0.00043835,30]
[325340050,1714743058998,-500.0,0.00043835,30]
[325340051,1714743059007,-500.0,0.00043835,30]
[325340052,1714743059309,-500.0,0.00043835,30]
[325340053,1714743059320,-595.41570366,0.00043835,30]
[325340054,1714743059330,-500.0,0.00043835,30]
[325340055,1714743059339,-935.82,0.00043835,30]
[325340056,1714743059349,-1801.92,0.00043835,30]
[325340057,1714743059359,-1000.53790684,0.00043835,2]
[325340058,1714743059369,-500.0,0.00043835,30]
[325340059,1714743059379,-1364.95,0.00043835,30]
[325340060,1714743059389,-500.0,0.00043835,30]
[325340061,1714743059399,-500.0,0.00043835,30]
[325340062,1714743059410,-500.0,0.00043835,30]
[325340063,1714743059420,-666.76,0.00043835,30]
[325340064,1714743059434,-500.0,0.00043835,30]
[325340065,1714743059443,-500.0,0.00043835,30]
[325340066,1714743059454,-500.0,0.00043835,30]
[325340067,1714743059464,-500.0,0.00043835,30]
[325340068,1714743059474,-500.0,0.00043835,30]
[325340069,1714743059483,-500.0,0.00043835,30]
[325340070,1714743059493,-1269.14,0.00043835,30]
[325340071,1714743059503,-523.74534433,0.00043835,30]
[325340072,1714743059513,-1594.13,0.00043835,30]
[325340073,1714743059523,-1593.4,0.00043835,30]
[325340074,1714743059532,-641.38,0.00043835,30]
[325340075,1714743059542,-500.0,0.00043835,30]
[325340076,1714743059551,-1077.25,0.00043835,30]
[325340077,1714743059562,-500.0,0.00043835,30]
[325340078,1714743059572,-501.09429753,0.00043835,30]
[325340079,1714743059582,-500.0,0.00043835,30]
[325340080,1714743059591,-611.85,0.00043835,30]
[325340081,1714743059601,-1640.45,0.00043835,30]
[325340082,1714743059610,-553.76,0.00043835,2]
[325340083,1714743059620,-500.0,0.00043835,30]
[325340084,1714743059629,-517.5,0.00043835,30]
[325340085,1714743059639,-500.0,0.00043835,30]
[325340086,1714743059648,-2352.52245017,0.00043835,30]
[325340087,1714743060349,-404.48230813,0.00043835,30]
[325340088,1714743060458,-168.2752417,0.00043835,30]
[325340089,1714743060468,-451.9208182,0.00043835,30]
[325340091,1714743328224,-1135.4,0.000106,2]
[325340092,1714743929137,459.08547485,0.000106,30]
[325340093,1714743970752,-15217.2156,0.000106,2]
[325340094,1714744064515,-155.0,0.00016997,2]
[325340095,1714744064541,-450.0,0.00018,3]
[325340096,1714744064572,-462.96875999,0.0002,2]
[325340097,1714744064596,-500.0,0.0002,3]
[325340098,1714744075475,-1752.0856742,0.00020982,2]
[325340099,1714744075500,-499.99,0.00020982,2]
[325340100,1714744079661,-151.21,0.00021644,2]
[325340101,1714744079685,-170.99,0.00021644,2]
[325340102,1714744079708,-550.0,0.00022,3]
[325340103,1714744080596,11607.75556581,0.00016997,2]
[325340118,1714744231779,-2657.30624144,0.00016997,2]
[325340119,1714744231805,-429.8742519,0.00016997,2]
[325340120,1714744231818,-857.74670121,0.00016997,2]
[325340121,1714744231830,-3906.61895768,0.00016997,2]
[325340122,1714744231840,-155.0,0.000209,2]
[325340123,1714744231850,-450.0,0.000237,2]
[325340124,1714744231860,-600.0,0.00024,3]
[325340125,1714744231870,-4999.61721329,0.00025505,2]
[325340126,1714744231956,-1153.90392012,0.00025505,2]
[325340127,1714744231968,-6105.05229622,0.00025505,2]
[325340128,1714744231981,-8722.27657037,0.00025505,2]
[325340129,1714744231991,-250.0,0.00025688,2]
[325340130,1714744232001,-216.99,0.00025706,120]
[325340131,1714744232010,-155.0,0.0002578,2]
[325340132,1714744232020,-650.0,0.00026,3]
[325340133,1714744232029,-200.0,0.0002603,2]
[325340134,1714744232038,-250.0,0.00027551,2]
[325340135,1714744232048,-1373.09693541,0.00027951,2]
[325340136,1714744232113,-305.70668724,0.00027951,2]
[325340137,1714744232123,-155.0,0.00027976,2]
[325340139,1714744232132,-206.81862437,0.00027976,2]
[325340141,1714744232142,-403.79899176,0.00027976,2]
[325340143,1714744232155,-829.59060237,0.00027976,2]
[325340146,1714744232169,-385.62936256,0.00027976,2]
[325340148,1714744232179,-185.03702777,0.00027976,2]
[325340149,1714744232188,-571.37171296,0.00027976,7]
[325340152,1714744232198,-89.10189671,0.00027977,5]
[325340153,1714744232236,-1262.30104,0.00027977,5]
[325340154,1714744232249,-1899.62694235,0.00027977,5]
[325340155,1714744232258,-1356.47305765,0.00027977,2]
[325340156,1714744232270,-1044.67412387,0.00027977,2]
[325340157,1714744232280,-1195.05730864,0.00027977,2]
[325340197,1714744237677,-155.0,0.00025468,2]
[325340201,1714744237688,-961.21153369,0.00027977,2]
[325340203,1714744237697,-869.38103731,0.00027977,2]
[325340206,1714744237709,-524.76943602,0.00027977,2]
[325340208,1714744237722,-461.39450269,0.00027977,2]
[325340211,1714744237731,-169.05,0.00028153,2]
[325340213,1714744237742,-151.21,0.00029333,2]
[325340215,1714744237751,-681.1998,0.00029631,2]
[325340217,1714744237761,-217.0,0.00029665,120]
[325340219,1714744237770,-506.89749867,0.000297,2]
[325340221,1714744237783,-253.90293612,0.000297,2]
[325340223,1714744237793,-328.65450669,0.000297,2]
[325340225,1714744237804,-1000.12346578,0.00029732,120]
[325340244,1714744238095,-712.74016841,0.00029732,2]
[325340245,1714744238115,-1562.631937,0.00029732,2]
[325340246,1714744238163,-1121.01309545,0.00029732,2]
[325340247,1714744238176,-2268.61404944,0.00029732,2]
[325340248,1714744238187,-1814.56851,0.00029732,2]
[325340249,1714744238238,-65246.60703314,0.00029732,2]
[325340250,1714744238249,-123753.74415488,0.00029732,2]
[325340251,1714744238261,-708.7166173,0.00029732,2]
[325340252,1714744238272,-301.52429435,0.00029732,2]
[325340274,1714744240656,-1343.31726572,0.00029732,2]
[325340275,1714744240668,-576.57859028,0.00029732,2]
[325340276,1714744240680,-179337.84735621,0.00029732,2]
[325340277,1714744240800,-9192.55846061,0.00029732,2]
[325340278,1714744240812,-3784.32,0.00029732,2]
[325340279,1714744240824,-4128.63986883,0.00029732,2]
[325340280,1714744240837,-396.92181228,0.00029732,2]
[325340281,1714744240964,-498.66220141,0.00027976,2]
[325340282,1714744240974,-420.40144743,0.00029732,2]
[325340283,1714744240987,-401121.0453973,0.00029732,2]
[325340284,1714744240999,-472.90510986,0.00029732,2]
[325340285,1714744241011,-1177.0000008,0.00029732,2]
[325340286,1714744241023,-818.05528125,0.00029732,2]
[325340287,1714744241038,-280.62050714,0.00029732,2]
[325340323,1714744242796,-764.825,0.00029732,2]
[325340324,1714744242808,-428.03097649,0.00029732,2]
[325340325,1714744242937,-1554.30749451,0.00029732,2]
[325340326,1714744242948,-398974.33181553,0.00029732,2]
[325340327,1714744242958,-171.03103542,0.000298,2]
[325340328,1714744242968,-215.47426272,0.0003,4]
[325340329,1714744242978,-200.0,0.00030601,2]
[325340330,1714744242988,-227.25368871,0.00031,5]